Cogmind - Beta 16 @@@ ROGUE MODE // 2026.01.11 @ 04:41:18 Player: AngelSpirit Result: Destroyed by P-60 Hacker with Shock Rifle Performance ------------- Evolutions (0) 0 Regions Visited (3) 600 Robots Destroyed (39) 195 Value Destroyed (876) 876 Prototype IDs (12) 240 Alien Tech Used (0) 0 Bonus (0) 0 TOTAL SCORE: 1911 Bonus ------- None Cogmind --------- Core Integrity 0/250 Matter 271/300 Energy 71/100 System Corruption 1% Temperature Warning (312) Movement Rolling (135) Ox3 Location -8/Recycling Parts ------- > --- POWER (1) -------- (None) > --- PROPULSION (2) --- Wheel Compact Wheel > --- UTILITY (2) ------ Huge Storage Unit Light Armor Plating > --- WEAPON (2) ------- Subdweller Beam Cannon Battle Cannon > --- INVENTORY (25) --- Subdweller Monowheel High-capacity Matter Pod (200) Sensor Array Gun Armor Scrap Shield Cobbler Unit Subdweller Shrapnel Launcher SUBCON Basin (Full) Peak State ------------ > --- POWER ------------ Improved Ion Engine > --- PROPULSION ------- Compact Wheel Subdweller Monowheel > --- UTILITY ---------- Huge Storage Unit Sensor Array > --- WEAPON ----------- Subdweller Beam Cannon Battle Cannon > --- INVENTORY -------- Wheel Subdweller Monowheel High-capacity Matter Pod Light Armor Plating Gun Armor Scrap Shield Cobbler Unit Subdweller Shrapnel Launcher SUBCON Basin [Rating: 31] Favorites ----------- Power Improved Ion Engine Engine Improved Ion Engine Propulsion Compact Wheel Leg Aluminum Leg Wheel Compact Wheel Utility Huge Storage Unit Device Sensor Array Storage Huge Storage Unit Protection Light Armor Plating Weapon Beam Rifle Energy Gun Beam Rifle Energy Cannon Beam Cannon Ballistic Gun Light Assault Rifle Ballistic Cannon Battle Cannon Special Weapon Mining Laser Build | -11 -10 -10 -8 ------- Run | Yrd Mat Sub Rec Slots Evolved . | . . . . Power . | . . . . Propulsion . | . . . . Utility . | . . . . Weapon . | . . . . Parts Attached 40 | 7 23 10 . Power 5 | 1 3 1 . Engine 5 | 1 3 1 . Core . | . . . . Reactor . | . . . . Propulsion 13 | 2 8 3 . Treads . | . . . . Leg 3 | . 3 . . Wheel 10 | 2 5 3 . Hover . | . . . . Flight . | . . . . Utility 10 | 2 5 3 . Device 3 | 1 1 1 . Storage 3 | 1 2 . . Processor . | . . . . Hackware . | . . . . Protection 4 | . 2 2 . Artifact . | . . . . Weapon 12 | 2 7 3 . Energy Gun 2 | . 2 . . Energy Cannon 2 | . 1 1 . Ballistic Gun 6 | 2 3 1 . Ballistic Cannon 1 | . . 1 . Launcher . | . . . . Special Weapon 1 | . 1 . . Impact Weapon . | . . . . Slashing Weapon . | . . . . Piercing Weapon . | . . . . Special Melee Weapon . | . . . . Unidentified Prototypes . | . . . . Parts Lost 6 | . 5 . 1 Power 2 | . 1 . 1 Propulsion 2 | . 2 . . Utility . | . . . . Weapon 2 | . 2 . . Highest Loss Streak 2 | . 2 . 1 To Critical Strikes . | . . . . Average Backups 9 | . 10 10 7 Power . | . . . . Propulsion 1 | . 1 2 1 Utility 5 | . 5 5 5 Weapon 2 | . 2 1 1 Tool/Special . | . . . . Unused Backups 14 | . 1 7 6 Power 1 | . . 1 . Propulsion 3 | . 1 1 1 Utility 5 | . . 1 4 Weapon 5 | . . 4 1 Tool/Special . | . . . . Average Slot Usage (%) 98 | . 96 99 97 Engine 13 | . 13 14 11 Leg 1 | . 3 . . Wheel 25 | . 22 27 28 Device 11 | . 11 11 . Storage 14 | . 14 14 14 Protection 2 | . 2 2 14 Energy Gun 6 | . 8 5 . Energy Cannon 10 | . 4 14 14 Ballistic Gun 7 | . 13 3 . Ballistic Cannon 2 | . . 4 14 Peak Build Rating 31 | 7 13 31 30 Average Rating 18 | 4 8 26 29 On Entrance 12 | . 7 11 30 Avg Prop Armor Cover (%) . | . . . . Naked Turns . | . . . . Heaviest Build 102 | 14 94 102 101 Greatest Support 36 | 26 32 36 26 Greatest Overweight (x) 5 | . 3 5 3 Average Overweight (x) 2 | . 1 2 3 Largest Inventory Capacity 25 | 8 25 25 25 Average Capacity 21 | 7 18 25 25 Most Carried 25 | 1 19 25 24 Average Carried 17 | . 10 24 24 Final Capacity 25 | 8 25 25 25 Final Carried 24 | 1 19 24 24 Class Distribution -------------------- 96% | Mutant 3% | Scavenger-Mutant Dominant Class ---------------- Mutant | -10/Materials Mutant | -10/Subcaves Mutant | -8/Recycling Resources | -11 -10 -10 -8 ----------- Run | Yrd Mat Sub Rec Matter Collected 1342 | 288 784 270 . Remotely . | . . . . Salvage Created 1218 | 15 856 305 42 Parts 83 | 3 57 21 2 Haulers Intercepted 1 | . 1 . . Recyclers Shooed 1 | . 1 . . Parts Field Recycled . | . . . . Retrieved Matter . | . . . . Parts Self-Destructed 11 | . . 11 . Prevented . | . . . . Parts Restored . | . . . . Kills | -11 -10 -10 -8 ------- Run | Yrd Mat Sub Rec Combat Hostiles Destroyed 29 | . 20 8 1 Guns 21 | . 20 1 . Cannons 7 | . . 6 1 Classes Destroyed 12 | 1 9 1 1 Worker 1 | . 1 . . Builder 1 | . 1 . . Tunneler 2 | 1 1 . . Hauler 1 | . 1 . . Recycler 1 | . 1 . . Mechanic 1 | . 1 . . Operator 1 | . 1 . . Watcher 2 | . 2 . . Swarmer 11 | . 9 2 . Grunt 14 | . 11 3 . Sentry 1 | . . . 1 Subdweller 3 | . . 3 . Best Kill Streak 8 | 1 8 2 1 Combat Bots Only 7 | . 7 2 1 Max Kills in Single Turn 1 | 1 1 1 1 Gunslinging . | . . . . Exploded . | . . . . Melee . | . . . . Uniques/NPCs Destroyed . | . . . . Combat | -11 -10 -10 -8 -------- Run | Yrd Mat Sub Rec Hostile Shots Fired 153 | . 105 30 18 Missed 42 | . 30 8 4 Hits 111 | . 75 22 14 Projectile 111 | . 75 22 14 Critical Strikes 2 | . . 1 1 Damage Taken 1234 | . 720 325 189 Core 250 | . 124 80 46 Absorbed by Shields . | . . . . Core Remaining (%) 100 | 100 . . . Volleys Fired 161 | 5 109 41 6 Largest 2 | 2 2 2 2 Hottest 140 | 40 116 140 113 Shots Fired 298 | 10 210 66 12 Gun 230 | 10 200 20 . Cannon 67 | . 9 46 12 Launcher . | . . . . Special 1 | . 1 . . Kinetic 223 | 10 191 16 6 Thermal 75 | . 19 50 6 Explosive . | . . . . Electromagnetic . | . . . . Robot Hit Streak 11 | 4 11 7 5 Robot Miss Streak 4 | 1 4 2 1 Penetration Max . | . . . . Secondary Targets 5 | . 5 . . Max Gunslinging Chain 1 | . 1 . . Shots Hit Robots 175 | 8 126 32 9 Core Hits 61 | 2 47 11 1 Critical Kills 1 | . . 1 . Critical Parts Destroyed . | . . . . Critical Strikes 2 | . . 2 . Burn 1 | . . 1 . Meltdown 1 | . . 1 . Melee Attacks . | . . . . Impact . | . . . . Slashing . | . . . . Piercing . | . . . . Sneak Attacks . | . . . . Combat Hostiles . | . . . . Follow-up Attacks . | . . . . Damage Inflicted 2305 | 90 1282 694 239 Guns 1535 | 90 1227 218 . Cannons 724 | . 55 430 239 Explosions . | . . . . Melee . | . . . . Ramming 46 | . . 46 . Kinetic 1556 | 90 1136 176 154 Thermal 703 | . 146 472 85 Explosive . | . . . . Electromagnetic . | . . . . Impact . | . . . . Slashing . | . . . . Piercing . | . . . . Highest Corruption 1 | . . . 1 Average Corruption 1 | . . . 1 Corruption Purged . | . . . . Corruption Blocked . | . . . . Overload Shots . | . . . . Overflow Damage 29 | . . 28 1 Projectiles 29 | . . 28 1 Explosions . | . . . . Melee . | . . . . Knockbacks 1 | . . . 1 Impact . | . . . . Kinetic 1 | . . . 1 Secondary . | . . . . Self-Inflicted Damage 22 | . . 22 . Shots . | . . . . Rammed 2 | . . 2 . Targets Rammed 2 | . . 2 . Kicked . | . . . . Crushed . | . . . . Highest Temperature 312 | . 201 60 312 Average Temperature 35 | . 30 12 181 Received Heat Transfer 333 | . 258 66 9 Siege Activations . | . . . . Martial Activations . | . . . . Shielding Activations . | . . . . Robots Disrupted . | . . . . Combat Hostiles . | . . . . Robots Corrupted . | . . . . Combat Hostiles . | . . . . Parts Fried . | . . . . Impact Corruptions . | . . . . Robots Melted 1 | . . 1 . Combat Hostiles 1 | . . 1 . Parts Melted 2 | . 1 1 . Heat Transferred 1369 | . 333 925 111 Parts Sabotaged . | . . . . Parts Stolen . | . . . . Parts Stripped . | . . . . Power Chain Reactions . | . . . . Alert | -11 -10 -10 -8 ------- Run | Yrd Mat Sub Rec Maximum Alert Level 1 | . 1 . . Low Security (%) 82 | 100 80 . 100 Level 1 17 | . 19 . . Level 2 . | . . . . Level 3 . | . . . . Level 4 . | . . . . Level 5 . | . . . . High Security . | . . . . Max Security . | . . . . Peak Influence 263 | 5 263 . 30 Initial 19 | . . . 19 Average 127 | . 136 . 17 Influence Increases 783 | 5 636 120 22 Destroy 0b10 Robot/C 520 | . 400 100 20 Destroy 0b10 Robot/NC 50 | 5 45 . . Destroy Leader 116 | . 96 20 . Successful Hack 19 | . 19 . . Select Force Hacks 30 | . 30 . . Disable Machine 15 | . 15 . . Destroy Structure 3 | . 1 . 2 Partial Spotted 15 | . 15 . . Lose Combat Pursuer 15 | . 15 . . Influence Decreases 772 | 5 524 192 51 Entered New Map 76 | . . 55 21 Time Decay 636 | 5 474 137 20 Lost Part 60 | . 50 . 10 Squads Dispatched 7 | . 7 . . Investigation 6 | . 6 . . Extermination . | . . . . Reinforcement 1 | . 1 . . Assault . | . . . . Garrison . | . . . . Intercept . | . . . . Searches Triggered . | . . . . Construction Impeded . | . . . . Haulers Reinforced . | . . . . Active Scanning Responses . | . . . . Cargo Convoy Interrupts . | . . . . Stealth | -11 -10 -10 -8 --------- Run | Yrd Mat Sub Rec Distress Signals . | . . . . Communications Jammed . | . . . . Distress Signals . | . . . . Times Spotted 51 | . 30 18 3 Peak Tracking Total 6 | . 6 6 3 Tactical Retreats 1 | . 1 . . Traps | -11 -10 -10 -8 ------- Run | Yrd Mat Sub Rec Traps Triggered 5 | . 5 . . Indirectly . | . . . . Trap Hack Attempts . | . . . . Triggered . | . . . . Disarmed . | . . . . Reprogrammed . | . . . . Reused . | . . . . Traps Extracted . | . . . . Installed . | . . . . Triggered . | . . . . Machines | -11 -10 -10 -8 ---------- Run | Yrd Mat Sub Rec Machines Disabled 2 | . 1 1 . Max in Single Turn 1 | . 1 1 . Machines Repaired . | . . . . Machines Dismantled . | . . . . Machines Sabotaged . | . . . . Overloaded Fab Kills . | . . . . Hacking | -11 -10 -10 -8 --------- Run | Yrd Mat Sub Rec Machines Accessed 12 | . 8 4 . Terminals 5 | . 5 . . Fabricators . | . . . . Repair Stations 1 | . 1 . . Recycling Units 2 | . 2 . . Scanalyzers . | . . . . Garrison Access . | . . . . Total Hacks 38 | . 30 8 . Successful 26 | . 18 8 . Failed 12 | . 12 . . Catastrophic . | . . . . Database Lockouts . | . . . . Manual 20 | . 20 . . Terminals 21 | . 21 . . Fabricators . | . . . . Repair Stations 5 | . 5 . . Recycling Units 4 | . 4 . . Scanalyzers . | . . . . Garrison Access . | . . . . Terminal Hacks 13 | . 5 8 . Record 5 | . . 5 . Robot Analysis 4 | . 4 . . Open Door 1 | . . 1 . Hauler Manifests 1 | . 1 . . Proto ID Catalog 1 | . . 1 . Release Object 1 | . . 1 . Fabricator Hacks . | . . . . Repair Station Hacks 3 | . 3 . . Refit 3 | . 3 . . Recycling Unit Hacks 2 | . 2 . . Retrieve Components 2 | . 2 . . Scanalyzer . | . . . . Garrison Access Hacks . | . . . . Unauthorized Hacks 8 | . 8 . . Terminals 7 | . 7 . . Botnet 3 | . 3 . . Operators 1 | . 1 . . Skim 3 | . 3 . . Fabricators . | . . . . Repair Stations . | . . . . Recycling Units 1 | . 1 . . Tunnel 1 | . 1 . . Scanalyzers . | . . . . Garrison Access . | . . . . Data Cores Recovered . | . . . . Used . | . . . . Hacking Detections 7 | . 7 . . Full Trace Events 1 | . 1 . . Feedback Events . | . . . . Feedback Blocked . | . . . . Robot Schematics Acquired . | . . . . Robots Built . | . . . . Authchips . | . . . . Time . | . . . . Total Robot Build Rating . | . . . . Part Schematics Acquired . | . . . . Parts Built . | . . . . Authchips . | . . . . Time . | . . . . Total Part Build Rating . | . . . . Part Studies Acquired . | . . . . Parts Repaired . | . . . . Time . | . . . . Parts Recycled . | . . . . Recycled Matter . | . . . . Retrieved Matter . | . . . . Retrieved Components 18 | . 18 . . Parts Scanalyzed . | . . . . Part Schematics Acquired . | . . . . Parts Damaged . | . . . . Bothacking | -11 -10 -10 -8 ------------ Run | Yrd Mat Sub Rec Used RIF Installer . | . . . . Robots Hacked . | . . . . Non-combat . | . . . . Combat . | . . . . Robot Hacks Applied . | . . . . Relay Couplers Released . | . . . . Fabnet Peak Effective % . | . . . . Robots Rewired . | . . . . Allies Hacked . | . . . . Hacks Repelled . | . . . . Allies | -11 -10 -10 -8 -------- Run | Yrd Mat Sub Rec Total Allies . | . . . . Largest Group . | . . . . Highest-Rated Group . | . . . . Highest-Rated Ally . | . . . . Total Orders . | . . . . Ally Attacks . | . . . . Total Damage . | . . . . Kills . | . . . . Allies Corrupted . | . . . . Allies Melted . | . . . . Intel | -11 -10 -10 -8 ------- Run | Yrd Mat Sub Rec Active Infowar (turns) 2415 | 2 1021 1392 . Sensors 1390 | . . 1390 . Seismic 1025 | 2 1021 2 . Robot Analysis Total 3 | . 3 . . Derelict Logs Recovered 1 | . . 1 . Drone Launches . | . . . . Drone Recoveries . | . . . . Exploration | -11 -10 -10 -8 ------------- Run | Yrd Mat Sub Rec Turns Passed 3082 | 60 1306 1673 43 Spaces Moved 1868 | 41 718 1092 17 Core 3 | 3 . . . Treads . | . . . . Legs 39 | . 39 . . Wheels 1826 | 38 679 1092 17 Hover . | . . . . Flight . | . . . . Fastest Speed 50 | 50 90 129 135 Average Speed 125 | 85 119 131 135 Slowest Speed 260 | 90 260 175 135 Overloaded Moves . | . . . . Propulsion Burnouts . | . . . . Robots Hopped . | . . . . Potential Cave-ins 2 | . . 2 . Cave-ins Triggered . | . . . . Exploration Rate (%) 43 | 3 100 61 9 Regions Visited 3 Branch Regions 2 Pre-discovered Areas 3 | . 1 2 . Known Exits Taken . | . . . . Unknown Exits Taken 3 | 1 1 1 . Scrap Searched 6 | . . 6 . Spaces Dug 6 | . . 6 . Terrain Destroyed 11 | . . 8 3 Melee . | . . . . Projectile 11 | . . 8 3 AOE . | . . . . Terrain Rammed . | . . . . Walls Destroyed . | . . . . Machines Disabled . | . . . . Actions | -11 -10 -10 -8 --------- Run | Yrd Mat Sub Rec Total 2322 | 53 976 1267 26 Wait 160 | . 78 79 3 Move 1865 | 40 717 1091 17 Hop . | . . . . Pick Up 32 | 1 24 7 . Fast Attach 19 | 7 7 5 . Attach 6 | . 4 2 . Detach 4 | . 4 . . Swap 34 | . 18 16 . Drop 39 | . 15 24 . Fire 161 | 5 109 41 6 Melee . | . . . . Ram 2 | . . 2 . Kick . | . . . . Crush . | . . . . Escape Stasis . | . . . . Rewire . | . . . . Trap . | . . . . Miscellaneous . | . . . . Route ------- -11/Scrapyard -10/Materials (discovered 6 exits: [*Mat x3] / [*Min x2] / *Sub) -10/Subcaves -8/Recycling History --------- Turn | Location | Event 18 | -11/Scrapyard | Discovered new exit (range 14) 61 | -11/Scrapyard | Entered Materials 111 | -10/Materials | Discovered new exit (range 16) 300 | -10/Materials | Build established: Mutant 555 | -10/Materials | Destroyed 7 combat bots 661 | -10/Materials | Derelicts attacked the area 698 | -10/Materials | Discovered new exit (range 3) 947 | -10/Materials | Discovered new exit (range 15) 1042 | -10/Materials | Discovered new exit (range 13) 1202 | -10/Materials | Discovered new exit (range 8) 1283 | -10/Materials | Discovered new exit (range 5) 1367 | -10/Materials | Entered Subcaves 1368 | -10/Subcaves | Shifting Twisted Machinery released Sub. Shrapnel Launcher 1368 | -10/Subcaves | Shifting Twisted Machinery released Sub. Monowheel 1617 | -10/Subcaves | Found SUBCON Basin 2058 | -10/Subcaves | Core integrity fell below 50% 2085 | -10/Subcaves | Disturbed a concealed Subdweller 2092 | -10/Subcaves | Disturbed a concealed Subdweller 2462 | -10/Subcaves | Learned Materials machine intel 2614 | -10/Subcaves | Learned location of Zion (-6) 2614 | -10/Subcaves | Met a Zionite searching for "candidates" 2689 | -10/Subcaves | Visited 4L-MR0's lab 2707 | -10/Subcaves | Found Gun Armor 2789 | -10/Subcaves | Visited Clippyterm 2793 | -10/Subcaves | Learned location of Extension (-5) 3023 | -10/Subcaves | Discovered new exit (range 6) 3040 | -10/Subcaves | Entered Recycling 3041 | -8/Recycling | Core integrity fell below 20% 3083 | -8/Recycling | Destroyed by P-60 Hacker with Shock Rifle Last Messages --------------- 02942_ Acquired 21 matter. 03023_ EXIT=FOUND 03030_ Slammed into S-10 Pest. 03032_ Destroyed Lgt. Ion Engine. 03032_ S-10 Pest destroyed. 03035_ Acquired 12 matter. 03036_ Slammed into S-10 Pest. 03037_ S-10 Pest destroyed. 03038_ Acquired 1 matter. 03039_ Flight Unit fries itself beyond repair. LOCATION=UNKNOWN GOAL=ESCAPE 03067_ Y-45 Defender springs to life. 03069_ Y-45 Defender destroyed. 03073_ R-06 Scavenger collects Lgt. Treads. 03074_ Imp. Ion Engine destroyed. 03077_ R-06 Scavenger collects Lgt. Armor Plating. 03078_ Destroyed Remote Datajack. 03081_ P-60 Hacker knocked back. Map ----- +----------------------------------------------------+ | | | | | | | | | | | ?????????????????????????????????????????? | | ?????????????????????????????????????????? | | ?????????????????????????????????????????? | | ?????????????????????????????????????????? | | ?????????????????????????????????????????? | | ?????????????????????????????????????????? | | ?????????????????????????????????????????? | | ?????????????????????????????????????????? | | ?????????????????????????????????????????? | | ?????????????????????????????????????????? | | ???????????????????????????#?????????????? | | ?????????????????????????# ??????????????? | | ???????????????????????##;####???????????? | | ?????????????????????? a/ ! !??????????? | | ?????????????????????? % ??????????? | | ????????######??????? ??????????? | | ????????# #?????? t ! g ?????????? | | ????????# #????? ?????????? | | ????????# #????#%%% l ????????? | | ????????# #####; sg tg]/ ????????? | | ????????# @/p = % ????????? | | ?#####??# # k r!! ????????? | | ?# #??# ########/###???????????? | | ?# #??# """ ??????????? | | ?# #### """ ######?????????????????? | | ?# """ #??????????????????????? | | ?# #### +??????????????????????? | | ?# #??# #??????????????????????? | | ?# #??# """ #??????????????????????? | | ?# ]??# """ +??????????????????????? | | ?# ]??# """ ###??????????????????????? | | ?# ]??# #????????????????????????? | | ?# ##?# #????????????????????????? | | ?# #??# #????????????????????????? | | ?# #??# #????????????????????????? | | ?# #??# ##### #????????????????????????? | | ?# ???# ????? #????????????????????????? | | ?# ???# ????? #????????????????????????? | | ?# ???#+?????+#????????????????????????? | | ?# ????????????????????????????????????? | | ?? ????????????????????????????????????? | | ?????????????????????????????????????????? | | ?????????????????????????????????????????? | | ?????????????????????????????????????????? | | ?????????????????????????????????????????? | +----------------------------------------------------+ Best States ------------- Heat Dissipation 39 Energy Generation 12 Energy Capacity 265 Matter Stores 300 Matter Capacity 300 Sight Range 16 Robot Scan Range 14 Terrain Scan Density 10 Armor Coverage 150 Evasion (%) 44 Item Schematics ----------------- None Robot Schematics ------------------ None Fabricated ------------ Nothing Repaired ---------- Nothing Studied --------- None Alien Tech Used ----------------- None Achievements -------------- None Challenges ------------ None Game ------ Seed CryofiberGrenadeScrap Manual? 0 Play Time 00:22:10 Cumulative 405.5 hours Start 2026.01.11 @ 04:18:55 End 2026.01.11 @ 04:41:18 Sessions 1 Manual Loads 0 Difficulty Rogue Special Mode None Game No. 147 Rogue 147 Adventurer 0 Explorer 0 Win Type - Total 10 Types 5/0/1/1/0/0/0/1/0/2 Lore% 85 Gallery% 81 Achievement% 71 Wizard Run 0 Options --------- Layout 1 ASCII 0 Keyboard 0 Movement Mouse Keybinds 0 Fullscreen 2 Font 32/SmallcapsGlow Map View 50x35 Zoom Use 0% Tactical HUD 1 Map Filters NONE Filters NONE Steam 1 RUN: c331afec-3ce7-49d3-9b91-f93c7493611a